Workbook

Sheet ввод данных
B3: Калькулятор расчета стоимости набора профиля "Астрель"
B7: Сторона "А" шкафа | E7: 1000 | F7: мм
B8: Сторона "В" шкафа | E8: 1000 | F8: мм
B9: Сторона "С" шкафа | E9: 0 | F9: мм | R9: Радиус трека
B10: Условный радиус | E10: =IF(C56=3,10000,IF(E7>=E8,E7,E8)) -> 1000 | F10: мм
B11: Высота проёма | E11: 2500 | F11: мм
B12: Количество дверей | E12: 2 | F12: шт | N12: Сторона "А"
B13: Количество секций в двери | E13: 4 | F13: шт
B16: Цвет -
B18: Диагональ шкафа (хорда) | E18: =CEILING(SQRT((ABS(E7-E9))^2+E8^2),0.01) -> 1414.22 | F18: мм
B19: Длина трека | E19: =CEILING(2^5*E10*(SQRT(2-SQRT(2+SQRT(2+SQRT(2+SQRT(2+SQRT(4-((E18/E10)^2)))))))),0.01) -> 1570.65 | F19: мм | Q19: сторона "В"
B20: Ширина двери | E20: =IF(C56=1,(E19+(E12-1)*C38)/E12-30,(E19+(E12-1)*C38)/E12+30) -> 768.325 | F20: мм
B21: Размер наполнения (ВхШ) мм. | D21: =D68 -> 590.5 | E21: =D69 -> 730.325 | F21: мм
B22: фрезеровка панелей и установка треков | E22: материал заказчика
B23: раскрой наполнения | E23: материал заказчика
B24: сборка дверей
B25: упаковка | C25: (для отправки транспортной компанией)
B27: Итого | D27: =E203 -> 23765.3 | F27: руб.
A35: Списки и окна и расчетные значения
A37: Выбор ручки профиля | C37: 1
A38: Ширина ручки профиля в мм. | C38: =IF(C37=2,C40,IF(C37=3,C41,IF(C37=4,C42,C39))) -> 26
A39: Открытая "С" | C39: 26
A40: Закрытая "Н" | C40: 35
A41: Овальная | C41: 39
A42: Квадро | C42: 42
A44: выбор ручки и цвета | C44: =IF(C37<=2,IF(C46=1,1,IF(C46=2,2,IF(C46=3,3,IF(8>C46,4,IF(C46=8,5))))),IF(C37=3,IF(C46=1,6,IF(C46=2,0,IF(C46=3,7,IF(8>C46,8,IF(C46=8,0))))),IF(C37=4,IF(C46<2,9,0)))) -> 1
A46: Цвет профиля | C46: 1
A47: "серебро"
A48: "шампань"
A49: "золото"
A50: кэшированный "Венге"
A51: кэшированный "Дуб Млечный"
A52: кэшированный "Вишня"
A53: кэшированный "Орех Итальянский"
A54: кэшированный "Белый"
A56: Форма шкафа | C56: 1
A57: Выгнутый
A58: Вогнутый
A59: Прямой
G61: хлыст
A62: горизонталь универсальная | D62: =IF(E12>1,E13*(D70+300)*E12,(E13-1)*(D70+300))*0.001 -> 8.1306 | E62: м. | G62: =IF(C46=3,CEILING(D62,2.9)/2.9,CEILING(D62,2.7)/2.7) -> 4 | H62: шт.
A63: Горизонталь нижняя | C63: 3м. | D63: =IF(E12>1,(D70+300)*E12,2*(D70+300))*0.001 -> 2.03265 | E63: м. | G63: =CEILING(D63,3)/3 -> 1 | H63: шт.
A64: Длина трека | C64: 3,5м. | D64: =(E19+100)*0.001 -> 1.67065 | E64: м. | G64: =IF(D64<=3.5,3.5,6) -> 3.5 | H64: м.
A65: ручка профиль | D65: =E11-40 -> 2460 | E65: мм | G65: =E12 -> 2
A66: уплотнитель | D66: =CEILING((D65*E12*2+E13*E12*D70*2)*0.001,1) -> 22 | E66: м.
A67: шлегель | D67: =CEILING(E11*2*E12*0.001,1) -> 10 | E67: м.
A68: Заполнение дверей (высота) | D68: =(D65-50-18-((E13-1)*10))/E13 -> 590.5 | E68: мм
A69: Заполнение дверей (ширина) | D69: =D70+14 -> 730.325 | E69: мм
A70: Длина горизонтали | D70: =E20-C38*2 -> 716.325 | E70: мм
A71: Винт сборочный | D71: =(E13+1)*E12*2 -> 20 | E71: шт.
A72: Фиксатор | D72: =IF(E12>=3,E12+1,E12) -> 2 | E72: шт.
A74: Выбор услуг и позиций
A75: верхний трек | D75: TRUE
A76: нижний трек | D76: TRUE
A77: ручка профиль | D77: TRUE
A78: уплотнитель | D78: TRUE
A79: шлегель | D79: TRUE
A80: ролики | D80: TRUE
A81: фиксатор | D81: TRUE
A82: установка треков | D82: FALSE
A83: раскрой наполнения | D83: FALSE
A84: сборка дверей | D84: FALSE
A85: упаковка | D85: FALSE
A87: Использование нашего ЛДСП | C87: 1
A88: Список нашего ЛДСП
A89: ЛДСП "Томсклесдрев"
A90: ЛДСП "Сыктывкар"
A91: ЛДСП "Эггер"
A93: Использование нашего заполнения | C93: =D68*D69*0.000001 -> 0.4312569125 | E93: S зап. = | F93: =C93*E13*E12 -> 3.4500553 | G93: листов
A94: Акриловое стекло | D94: FALSE | E94: =IF(AND(D94,D96,D97,D98,D99),F93/5,IF(AND(D94,D96,D97,D98),F93/4,IF(AND(D94,D96,D97,D99),F93/4,IF(AND(D94,D96,D98,D99),F93/4,IF(AND(D94,D97,D98,D99),F93/4,IF(AND(D94,D96,D97),F93/3,IF(AND(D94,D96,D98),F93/3,IF(AND(D94,D96,D99),F93/3,IF(AND(D94,D97,D98),F93/3,IF(AND(D94,D97,D99),F93/3,IF(AND(D94,D98,D99),F93/3,IF(AND(D94,D96),F93/2,IF(AND(D94,D97),F93/2,IF(AND(D94,D98),F93/2,IF(AND(D94,D99),F93/2,IF(D94,F93,0)))))))))))))))) -> 0 | G94: =CEILING(E94/6,0.5) -> 0
A95: Фотопечать | D95: FALSE | E95: =IF(D95,C93*N20,0) -> 0 | G95: =CEILING(E95/1,1) -> 0
A96: Пластик "Слотекс" | D96: FALSE | E96: =IF(AND(D94,D96,D97,D98,D99),F93/5,IF(AND(D96,D94,D97,D98),F93/4,IF(AND(D96,D94,D97,D99),F93/4,IF(AND(D96,D94,D98,D99),F93/4,IF(AND(D96,D97,D98,D99),F93/4,IF(AND(D96,D94,D97),F93/3,IF(AND(D94,D96,D98),F93/3,IF(AND(D94,D96,D99),F93/3,IF(AND(D96,D97,D98),F93/3,IF(AND(D96,D97,D99),F93/3,IF(AND(D96,D98,D99),F93/3,IF(AND(D94,D96),F93/2,IF(AND(D96,D97),F93/2,IF(AND(D96,D98),F93/2,IF(AND(D96,D99),F93/2,IF(D96,F93,0)))))))))))))))) -> 0 | G96: =CEILING(E96/3,1) -> 0
A97: Пластик "Абет Ламинати" | D97: FALSE | E97: =IF(AND(D94,D96,D97,D98,D99),F93/5,IF(AND(D94,D96,D97,D98),F93/4,IF(AND(D94,D96,D97,D99),F93/4,IF(AND(D97,D96,D98,D99),F93/4,IF(AND(D94,D97,D98,D99),F93/4,IF(AND(D94,D96,D97),F93/3,IF(AND(D97,D96,D98),F93/3,IF(AND(D97,D96,D99),F93/3,IF(AND(D94,D97,D98),F93/3,IF(AND(D94,D97,D99),F93/3,IF(AND(D97,D98,D99),F93/3,IF(AND(D97,D96),F93/2,IF(AND(D94,D97),F93/2,IF(AND(D97,D98),F93/2,IF(AND(D97,D99),F93/2,IF(D97,F93,0)))))))))))))))) -> 0 | G97: =CEILING(E97/3,1) -> 0
A98: Пластик "Willsonart" 1500х3000 | D98: FALSE | E98: =IF(AND(D94,D96,D97,D98,D99),F93/5,IF(AND(D94,D96,D97,D98),F93/4,IF(AND(D98,D96,D97,D99),F93/4,IF(AND(D94,D96,D98,D99),F93/4,IF(AND(D94,D97,D98,D99),F93/4,IF(AND(D98,D96,D97),F93/3,IF(AND(D94,D96,D98),F93/3,IF(AND(D98,D96,D99),F93/3,IF(AND(D94,D97,D98),F93/3,IF(AND(D98,D97,D99),F93/3,IF(AND(D94,D98,D99),F93/3,IF(AND(D98,D96),F93/2,IF(AND(D98,D97),F93/2,IF(AND(D94,D98),F93/2,IF(AND(D98,D99),F93/2,IF(D98,F93,0)))))))))))))))) -> 0 | G98: =CEILING(E98/4,1) -> 0
A99: Экокожа | D99: FALSE | E99: =IF(AND(D94,D96,D97,D98,D99),F93/5,IF(AND(D99,D96,D97,D98),F93/4,IF(AND(D94,D96,D97,D99),F93/4,IF(AND(D94,D96,D98,D99),F93/4,IF(AND(D94,D97,D98,D99),F93/4,IF(AND(D99,D96,D97),F93/3,IF(AND(D99,D96,D98),F93/3,IF(AND(D94,D96,D99),F93/3,IF(AND(D99,D97,D98),F93/3,IF(AND(D94,D97,D99),F93/3,IF(AND(D94,D98,D99),F93/3,IF(AND(D99,D96),F93/2,IF(AND(D99,D97),F93/2,IF(AND(D99,D98),F93/2,IF(AND(D94,D99),F93/2,IF(D99,F93,0)))))))))))))))) -> 0 | G99: =CEILING(E99/1,1) -> 0
A100: ДВПо | D100: =OR(D99,D98,D97,D96) -> FALSE | E100: =SUM(E96:E99) -> 0 | G100: =CEILING(E100/4,1) -> 0
A103: Прайс
B105: Наименование | D105: ед. изм.
B106: Серебро
B107: Горизонталь верх, средняя | D107: 2,7 м. | E107: 550 | F107: руб.
B108: Горизонталь нижняя | D108: 6 м. | E108: 2400 | F108: руб.
B109: Верхняя направляющая | D109: 6 м. | E109: 1350 | F109: руб.
B110: Нижняя направляющая | D110: 6 м. | E110: 500 | F110: руб.
B111: Профиль-ручка открытая | D111: 5,4 м. | E111: 1550 | F111: руб.
B112: Профиль-ручка закрытая | D112: 5,4 м. | E112: 1550 | F112: руб.
B113: Профиль-ручка "овальная" "Модус" | D113: 2,7 м. | E113: 990 | F113: руб.
B114: Профиль-ручка "квадро" "Модус" | D114: 2,7 м. | E114: 1505 | F114: руб.
B115: Шампань "Аристо","Модус"
B116: Горизонталь верх, средняя | D116: 2,7 м. | E116: 550 | F116: руб.
B117: Горизонталь нижняя | D117: 6 м. | E117: 2400 | F117: руб.
B118: Верхняя направляющая | D118: 6 м. | E118: 1350 | F118: руб.
B119: Нижняя направляющая | D119: 6 м. | E119: 500 | F119: руб.
B120: Профиль-ручка открытая | D120: 5,4 м. | E120: 1610 | F120: руб.
B121: Профиль-ручка закрытая | D121: 5,4 м. | E121: 1610 | F121: руб.
B122: Профиль-ручка "овальная" "Модус" | D122: 2,7 м.
B123: Профиль-ручка "квадро" "Модус" | D123: 2,7 м.
B124: Золото "Фурниту"
B125: Горизонталь верх, средняя | D125: 2,9 м. | E125: 753 | F125: руб.
B126: Горизонталь нижняя | D126: 6 м. | E126: 2400 | F126: руб.
B127: Верхняя направляющая | D127: 6 м. | E127: 1350 | F127: руб.
B128: Нижняя направляющая | D128: 6 м. | E128: 500 | F128: руб.
B129: Профиль-ручка открытая | D129: 5,5 м. | E129: 975 | F129: руб.
B130: Профиль-ручка закрытая | D130: 5,5 м. | E130: 975 | F130: руб.
B131: Профиль ручка "овальная" "Модус" | D131: 2,7 м. | E131: 1030 | F131: руб.
B132: Кэшированные дерево "Аристо"
B133: Горизонталь верх, средняя | D133: 2,7 м. | E133: 550 | F133: руб.
B134: Горизонталь нижняя | D134: 3 м. | E134: 2400 | F134: руб.
B135: Верхняя направляющая | D135: 6 м. | E135: 1350 | F135: руб.
B136: Нижняя направляющая | D136: 6 м. | E136: 500 | F136: руб.
B137: Профиль-ручка открытая | D137: 5,4 м. | E137: 1630 | F137: руб.
B138: Профиль-ручка закрытая | D138: 5,4 м. | E138: 1630 | F138: руб.
B139: Профиль ручка "овальная""Модус" | D139: 2,7 м. | E139: 1585 | F139: руб.
B140: Кэшированные белый "Аристо"
B141: Горизонталь верх, средняя | D141: 2,7 м. | E141: 600 | F141: руб.
B142: Горизонталь нижняя | D142: 6 м. | E142: 2400 | F142: руб.
B143: Верхняя направляющая | D143: 6 м. | E143: 1350 | F143: руб.
B144: Нижняя направляющая | D144: 6 м. | E144: 500 | F144: руб.
B145: Профиль-ручка открытая | D145: 5,4 м. | E145: 1800 | F145: руб.
B147: Шлегель | D147: 1 м. | E147: 19 | F147: руб.
B148: Уплотнитель | D148: 1 м. | E148: 19 | F148: руб.
B149: К-т роликов | D149: 1 к-т | E149: 250 | F149: руб.
B150: Распашной механизм | D150: 1 к-т | E150: 150 | F150: руб.
B151: Сборка двери 3 секции | D151: 1 шт. | E151: 1000 | F151: руб.
B152: Сборка 1 секции | D152: 1 шт. | E152: 100 | F152: руб.
B153: Винт сборочный | D153: 1 шт. | E153: 2 | F153: руб.
B154: Фиксатор двери на скотче | D154: 1 шт. | E154: 25 | F154: руб.
B155: Фиксатор двери магнит | D155: 1 шт. | E155: 100 | F155: руб.
B156: ЛДСП "Томсклесдрев" | D156: 1 лист. | E156: 1700 | F156: руб.
B157: ЛДСП "Сыктывкар" | D157: 1 лист. | E157: 3200 | F157: руб.
B158: ЛДСП "Эггер" | D158: 1 лист. | E158: 3800 | F158: руб.
B159: ДВПо 2750х1700 | D159: 1 лист. | E159: 500 | F159: руб.
B160: Акриловое стекло 2050х3050 | D160: 1 лист. | E160: 20000 | F160: руб.
B161: Фотопечать | D161: 1 м.кв. | E161: 3000 | F161: руб.
B162: Пластик "Слотекс" 1300х3000 | D162: 1 лист. | E162: 2000 | F162: руб.
B163: Пластик "Абет Ламинати" | D163: 1 лист. | E163: 4000 | F163: руб.
B164: Пластик "Willsonart" 1500х3000 | D164: 1 лист. | E164: 6000 | F164: руб.
B165: Экокожа | D165: п.м. | E165: 1000 | F165: руб.
B166: Раскрой наполнения | D166: п.м. | E166: 30 | F166: руб.
B167: Кромкооблицовка | D167: п.м. | E167: 70 | F167: руб.
B168: Кэширование | D168: п.м. | E168: 70 | F168: руб.
B169: Установка треков | D169: шт. | E169: 200 | F169: руб.
B170: Упаковка в ЛДСП | D170: шт. | E170: 3000 | F170: руб.
B172: Расчет цены | E172: Цена * | F172: 3 | H172: Цена + | I172: 10 | J172: % | L172: Цена без надбавки
B174: Горизонталь универсальная | D174: =IF(C46=1,G62*E107,IF(C46=2,G62*E116,IF(C46=3,G62*E125,IF(C46=8,G62*E141,G62*E133)))) -> 2200 | E174: =D174*F172 -> 6600
B175: Горизонталь нижняя | D175: =IF(C46=2,G63*E117/2,IF(C46=3,E126/2*G63,E108/2)) -> 1200 | E175: =D175*F172 -> 3600
B176: Трек верний | D176: =IF(E12>1,IF(C46<4,E109/6*G64*3,E109/6*G64*3+D64*3*E168),0) -> 2362.5 | E176: =D176*F172 -> 7087.5
B177: Трек нижний | D177: =IF(E12>1,E110/6*G64*2,0) -> 583.3333333 | E177: =D177*F172 -> 1750
B178: Ролики или распашной мех. | D178: =IF(D80,IF(E12>=2,E12*E149,E12*E150),0) -> 500 | H178: =D178+D178*I172/100 -> 550
B179: Шлегель | D179: =IF(D79,D67*E147,0) -> 190 | H179: =D179+D179*I172/100 -> 209
B180: Уплотнитель | D180: =IF(D78,D66*E148,0) -> 418 | H180: =D180+D180*I172/100 -> 459.8
B181: Винт сборочный | D181: =IF(D80,D71*E153,0) -> 40 | H181: =D181+D181*I172/100 -> 44
B182: Фиксатор двери | D182: =IF(D81,IF(D72=1,E155,E154*D72),0) -> 50 | H182: =D182+D182*I172/100 -> 55
B183: Установка треков+ кромкооблицовка | D183: =IF(D82,(D64*5*E169)+(D64*4*E167),0) -> 0 | L183: =D183 -> 0
B184: ЛДСП | D184: =IF(D82,IF(C87=2,E156,IF(C87=3,E157,IF(C87=4,E158,0))),0) -> 0 | H184: =D184+D184*I172/100 -> 0
B185: Сборка дверей | D185: =IF(AND(D84,E13<=3),E151*E12,IF(AND(D84,E13>=4),E151*E12+(E152*E12*(E13-3)),0)) -> 0 | L185: =D185 -> 0
B186: Раскрой наполнения | D186: =IF(D83,D66*E166,0) -> 0 | L186: =D186 -> 0
B187: Акриловое стекло | D187: =E160*G94 -> 0 | H187: =D187+D187*I172/100 -> 0
B188: Пластик "Слотекс" | D188: =E162*G96 -> 0 | H188: =D188+D188*I172/100 -> 0
B189: Пластик "Абет Ламинати" | D189: =E163*G97 -> 0 | H189: =D189+D189*I172/100 -> 0
B190: Пластик "Willsonart" 1500х3000 | D190: =E164*G98 -> 0 | H190: =D190+D190*I172/100 -> 0
B191: Экокожа | D191: =E165*G99 -> 0 | H191: =D191+D191*I172/100 -> 0
B192: ДВПо | D192: =E159*G100 -> 0 | H192: =D192+D192*I172/100 -> 0
B193: Фотопечать | D193: =E161*G95 -> 0 | H193: =D193+D193*I172/100 -> 0
B194: Упаковка | D194: =IF(D85,E170,0) -> 0 | L194: =D194 -> 0
B195: Ручка профиль | D195: =IF(D77,IF(C44=1,E111*E12,IF(C44=2,E120*E12,IF(C44=3,E129*E12,IF(C44=4,E137*E12,IF(C44=5,E145*E12,IF(C44=6,E113*E12*2,IF(C44=7,E131*E12*2,IF(C44=8,E139*E12*2,IF(C44=9,E114*E12*2,0))))))))),0) -> 3100 | H195: =IF(D65>2700,(D195+D195*I172/100)*2,D195+D195*I172/100) -> 3410
A197: ----------------------------------------------------------------------------------------------------------------------------------------------------- | H197: --------------------------------------------------------------------------------------
A198: Итого: | E198: =SUM(E174:E197) -> 19037.5 | H198: =SUM(H178:H197) -> 4727.8 | L198: =SUM(L183:L197) -> 0
A201: Всего: | B201: =SUM(E198:L198) -> 23765.3
A203: Расчет прямого профиля | E203: =IF(C56=3,B201/2,B201) -> 23765.3

Sheet Лист1
A1: 197 | B1: 197 | C1: 197 | D1: 197 | E1: 197 | G1: 197 | H1: 197 | I1: 197 | K1: 197 | L1: 197 | N1: 197
A2: 199 | B2: 199 | C2: 199 | D2: 199 | F2: 199 | G2: 199 | H2: 199 | K2: 199
A3: 200 | B3: 200 | C3: 200 | E3: 200 | F3: 200 | G3: 200 | J3: 200
A4: 201 | B4: 201 | D4: 201 | E4: 201 | F4: 201 | I4: 201 | J4: 201 | M4: 201
A5: 202 | C5: 202 | D5: 202 | E5: 202 | F5: 202 | H5: 202 | I5: 202 | J5: 202 | L5: 202 | M5: 202
A8: 199 | B8: 199 | C8: 199 | D8: 199 | E8: 199 | G8: 199 | H8: 199 | I8: 199 | K8: 199 | L8: 199 | N8: 199
A9: 200 | B9: 200 | C9: 200 | D9: 200 | F9: 200 | G9: 200 | H9: 200 | K9: 200
A10: 201 | B10: 201 | C10: 201 | E10: 201 | F10: 201 | G10: 201 | J10: 201
A11: 202 | B11: 202 | D11: 202 | E11: 202 | F11: 202 | I11: 202 | J11: 202 | M11: 202
A12: 197 | C12: 197 | D12: 197 | E12: 197 | F12: 197 | H12: 197 | I12: 197 | J12: 197 | L12: 197 | M12: 197
A14: 200 | B14: 200 | C14: 200 | D14: 200 | E14: 200 | G14: 200 | H14: 200 | I14: 200 | K14: 200 | L14: 200 | N14: 200
A15: 201 | B15: 201 | C15: 201 | D15: 201 | F15: 201 | G15: 201 | H15: 201 | K15: 201
A16: 202 | B16: 202 | C16: 202 | E16: 202 | F16: 202 | G16: 202 | J16: 202
A17: 197 | B17: 197 | D17: 197 | E17: 197 | F17: 197 | I17: 197 | J17: 197 | M17: 197
A18: 199 | C18: 199 | D18: 199 | E18: 199 | F18: 199 | H18: 199 | I18: 199 | J18: 199 | L18: 199 | M18: 199
A20: 201 | B20: 201 | C20: 201 | D20: 201 | E20: 201 | G20: 201 | H20: 201 | I20: 201 | K20: 201 | L20: 201 | N20: 201
A21: 202 | B21: 202 | C21: 202 | D21: 202 | F21: 202 | G21: 202 | H21: 202 | K21: 202
A22: 197 | B22: 197 | C22: 197 | E22: 197 | F22: 197 | G22: 197 | J22: 197
A23: 199 | B23: 199 | D23: 199 | E23: 199 | F23: 199 | I23: 199 | J23: 199 | M23: 199
A24: 200 | C24: 200 | D24: 200 | E24: 200 | F24: 200 | H24: 200 | I24: 200 | J24: 200 | L24: 200 | M24: 200
A26: 202 | B26: 202 | C26: 202 | D26: 202 | E26: 202 | G26: 202 | H26: 202 | I26: 202 | K26: 202 | L26: 202 | N26: 202
A27: 197 | B27: 197 | C27: 197 | D27: 197 | F27: 197 | G27: 197 | H27: 197 | K27: 197
A28: 199 | B28: 199 | C28: 199 | E28: 199 | F28: 199 | G28: 199 | J28: 199
A29: 200 | B29: 200 | D29: 200 | E29: 200 | F29: 200 | I29: 200 | J29: 200 | M29: 200
A30: 201 | C30: 201 | D30: 201 | E30: 201 | F30: 201 | H30: 201 | I30: 201 | J30: 201 | L30: 201 | M30: 201
